[Event "Titled Tuesday Blitz July 4 Late 2023"]
[White "Silva, Caio Henrique Angelico"]
[Black "Bullen, Alex"]
[WhiteFideId "22777210"]
[BlackFideId "1801627"]
[WhiteElo "2490"]
[BlackElo "2293"]
[Result "1-0"]
[Round "4"]
[TimeControl "180+2"]
[Date "2023.07.04"]
[WhiteClock "0:01:48"]
[BlackClock "0:00:49"]
[Board "84"]

1. Nf3 {[%clk 0:03:00]}  d5 {[%clk 0:02:59]} 2. c4 {[%clk 0:02:59]}  e6 {[%clk 0:02:59]} 3. g3 {[%clk 0:02:58]}  Nf6 {[%clk 0:02:59]} 4. Bg2 {[%clk 0:02:59]}  d4 {[%clk 0:03:00]} 5. O-O {[%clk 0:02:59]}  c5 {[%clk 0:03:00]} 6. d3 {[%clk 0:02:56]}  Nc6 {[%clk 0:03:00]} 7. e3 {[%clk 0:02:56]}  e5 {[%clk 0:02:59]} 8. exd4 {[%clk 0:02:56]}  cxd4 {[%clk 0:02:55]} 9. b4 {[%clk 0:02:47]}  Bxb4 {[%clk 0:02:51]} 10. Nxe5 {[%clk 0:02:47]}  Nxe5 {[%clk 0:02:48]} 11. Qa4+ {[%clk 0:02:46]}  Nc6 {[%clk 0:02:38]} 12. Bxc6+ {[%clk 0:02:46]}  bxc6 {[%clk 0:02:39]} 13. Qxb4 {[%clk 0:02:46]}  Qe7 {[%clk 0:02:22]} 14. Qa5 {[%clk 0:02:38]}  Bh3 {[%clk 0:02:11]} 15. Re1 {[%clk 0:02:36]}  Be6 {[%clk 0:02:07]} 16. Ba3 {[%clk 0:02:34]}  Qb7 {[%clk 0:02:00]} 17. Nd2 {[%clk 0:02:23]}  h5 {[%clk 0:01:55]} 18. Qg5 {[%clk 0:02:19]}  O-O-O {[%clk 0:01:36]} 19. Qa5 {[%clk 0:02:08]}  h4 {[%clk 0:01:25]} 20. Rab1 {[%clk 0:02:08]}  Qc7 {[%clk 0:01:24]} 21. Qa6+ {[%clk 0:02:07]}  Kd7 {[%clk 0:01:16]} 22. Rb7 {[%clk 0:02:07]}  hxg3 {[%clk 0:01:09]} 23. Rxc7+ {[%clk 0:02:04]}  Kxc7 {[%clk 0:01:10]} 24. Qxa7+ {[%clk 0:02:02]}  Kc8 {[%clk 0:01:11]} 25. fxg3 {[%clk 0:01:52]}  Ng4 {[%clk 0:00:49]} 26. Rb1 {[%clk 0:01:48]} 1-0


[Site "https://www.chess.com"]

[Event "Titled Tuesday Blitz July 4 Late 2023"]
[White "Goryachkina, Aleksandra"]
[Black "Han, Yichen"]
[WhiteFideId "4147103"]
[BlackFideId "1054430"]
[WhiteElo "2716"]
[BlackElo "2474"]
[Result "1-0"]
[Round "4"]
[TimeControl "180+2"]
[Date "2023.07.04"]
[WhiteClock "0:00:48"]
[BlackClock "0:00:26"]
[Board "86"]

1. e4 {[%clk 0:03:00]}  c5 {[%clk 0:02:59]} 2. Nf3 {[%clk 0:03:00]}  e6 {[%clk 0:03:00]} 3. d4 {[%clk 0:02:58]}  cxd4 {[%clk 0:03:01]} 4. Nxd4 {[%clk 0:02:59]}  a6 {[%clk 0:03:01]} 5. Bd3 {[%clk 0:02:58]}  Nf6 {[%clk 0:03:01]} 6. O-O {[%clk 0:02:55]}  d6 {[%clk 0:03:01]} 7. c4 {[%clk 0:02:53]}  Nbd7 {[%clk 0:03:02]} 8. Nc3 {[%clk 0:02:52]}  Qc7 {[%clk 0:03:02]} 9. Qe2 {[%clk 0:02:36]}  b6 {[%clk 0:03:02]} 10. Be3 {[%clk 0:02:33]}  Bb7 {[%clk 0:03:02]} 11. f3 {[%clk 0:02:31]}  Be7 {[%clk 0:03:01]} 12. Rfd1 {[%clk 0:02:30]}  O-O {[%clk 0:03:01]} 13. Rac1 {[%clk 0:02:30]}  Rfe8 {[%clk 0:03:02]} 14. Kh1 {[%clk 0:02:26]}  Rac8 {[%clk 0:03:02]} 15. Qf2 {[%clk 0:02:22]}  Qb8 {[%clk 0:02:58]} 16. Bf1 {[%clk 0:02:19]}  Bd8 {[%clk 0:02:49]} 17. b3 {[%clk 0:02:08]}  Bc7 {[%clk 0:02:41]} 18. Qh4 {[%clk 0:01:56]}  d5 {[%clk 0:02:35]} 19. exd5 {[%clk 0:01:52]}  exd5 {[%clk 0:02:35]} 20. Bg5 {[%clk 0:01:46]}  dxc4 {[%clk 0:02:16]} 21. Nf5 {[%clk 0:01:27]}  Re6 {[%clk 0:01:16]} 22. Bxc4 {[%clk 0:01:21]}  h6 {[%clk 0:00:43]} 23. Bxe6 {[%clk 0:01:15]}  fxe6 {[%clk 0:00:39]} 24. Nxh6+ {[%clk 0:01:06]}  gxh6 {[%clk 0:00:38]} 25. Bxf6 {[%clk 0:01:06]}  Nxf6 {[%clk 0:00:34]} 26. Qxf6 {[%clk 0:01:06]}  Be5 {[%clk 0:00:33]} 27. Qxe6+ {[%clk 0:01:05]}  Kh7 {[%clk 0:00:32]} 28. Rd7+ {[%clk 0:01:04]}  Bg7 {[%clk 0:00:32]} 29. Qf7 {[%clk 0:00:50]}  Qe5 {[%clk 0:00:31]} 30. Rxb7 {[%clk 0:00:49]}  Rxc3 {[%clk 0:00:26]} 31. Qxg7+ {[%clk 0:00:48]} 1-0


[Site "https://www.chess.com"]

[Event "Titled Tuesday Blitz July 4 Late 2023"]
[White "Fiedorek, Michal"]
[Black "Karttunen, Mika"]
[WhiteFideId "1199528"]
[BlackFideId "502081"]
[WhiteElo "2474"]
[BlackElo "2613"]
[Result "0-1"]
[Round "4"]
[TimeControl "180+2"]
[Date "2023.07.04"]
[WhiteClock "0:01:07"]
[BlackClock "0:01:28"]
[Board "87"]

1. e4 {[%clk 0:03:00]}  c5 {[%clk 0:02:59]} 2. Nf3 {[%clk 0:02:59]}  d6 {[%clk 0:02:59]} 3. d4 {[%clk 0:03:00]}  cxd4 {[%clk 0:02:59]} 4. Nxd4 {[%clk 0:03:01]}  Nf6 {[%clk 0:03:00]} 5. Nc3 {[%clk 0:03:01]}  a6 {[%clk 0:03:00]} 6. Be3 {[%clk 0:02:55]}  e5 {[%clk 0:03:00]} 7. Nf3 {[%clk 0:02:52]}  Qc7 {[%clk 0:02:46]} 8. a4 {[%clk 0:02:51]}  Be6 {[%clk 0:02:44]} 9. a5 {[%clk 0:02:50]}  Nbd7 {[%clk 0:02:43]} 10. Ng5 {[%clk 0:02:49]}  Bc4 {[%clk 0:02:41]} 11. Be2 {[%clk 0:02:44]}  Be7 {[%clk 0:02:27]} 12. O-O {[%clk 0:02:44]}  O-O {[%clk 0:02:26]} 13. Nf3 {[%clk 0:02:29]}  Rac8 {[%clk 0:02:23]} 14. Nd2 {[%clk 0:02:25]}  Be6 {[%clk 0:02:19]} 15. Nf3 {[%clk 0:02:10]}  h6 {[%clk 0:02:12]} 16. Qd2 {[%clk 0:02:05]}  Rfd8 {[%clk 0:02:08]} 17. Rfc1 {[%clk 0:02:05]}  Nc5 {[%clk 0:02:08]} 18. Bd3 {[%clk 0:01:48]}  d5 {[%clk 0:02:04]} 19. exd5 {[%clk 0:01:41]}  Nxd5 {[%clk 0:01:59]} 20. Nxd5 {[%clk 0:01:41]}  Bxd5 {[%clk 0:01:59]} 21. Bxc5 {[%clk 0:01:35]}  Bxc5 {[%clk 0:01:56]} 22. Qe1 {[%clk 0:01:14]}  e4 {[%clk 0:01:46]} 23. Bxe4 {[%clk 0:01:10]}  Re8 {[%clk 0:01:45]} 24. Bxd5 {[%clk 0:01:06]}  Rxe1+ {[%clk 0:01:44]} 25. Rxe1 {[%clk 0:01:07]}  Bxf2+ {[%clk 0:01:37]} 26. Kxf2 {[%clk 0:01:07]}  Qc5+ {[%clk 0:01:37]} 27. Kf1 {[%clk 0:01:06]}  Qxd5 {[%clk 0:01:37]} 28. Rad1 {[%clk 0:01:06]}  Qxa5 {[%clk 0:01:35]} 29. Re2 {[%clk 0:01:06]}  Qb5 {[%clk 0:01:32]} 30. Rd3 {[%clk 0:01:06]}  Qxb2 {[%clk 0:01:28]} 31. Ne5 {[%clk 0:01:07]} 0-1


[Site "https://www.chess.com"]

[Event "Titled Tuesday Blitz July 4 Late 2023"]
[White "Ovchinnikov, Vsevolod"]
[Black "Koc, Przemyslaw"]
[WhiteFideId "24176842"]
[BlackFideId "1109081"]
[WhiteElo "2578"]
[BlackElo "2454"]
[Result "1/2-1/2"]
[Round "4"]
[TimeControl "180+2"]
[Date "2023.07.04"]
[WhiteClock "0:00:06"]
[BlackClock "0:00:55"]
[Board "90"]

1. d4 {[%clk 0:03:00]}  d6 {[%clk 0:02:57]} 2. c4 {[%clk 0:03:01]}  e5 {[%clk 0:02:58]} 3. dxe5 {[%clk 0:03:00]}  dxe5 {[%clk 0:02:58]} 4. Qxd8+ {[%clk 0:03:01]}  Kxd8 {[%clk 0:02:58]} 5. Nf3 {[%clk 0:03:01]}  f6 {[%clk 0:02:59]} 6. Nc3 {[%clk 0:03:02]}  Be6 {[%clk 0:02:58]} 7. b3 {[%clk 0:03:01]}  Nd7 {[%clk 0:02:58]} 8. Bb2 {[%clk 0:03:02]}  c6 {[%clk 0:02:58]} 9. O-O-O {[%clk 0:03:02]}  Kc7 {[%clk 0:02:59]} 10. e3 {[%clk 0:02:56]}  Nh6 {[%clk 0:02:59]} 11. Rd2 {[%clk 0:02:55]}  a5 {[%clk 0:02:56]} 12. Bd3 {[%clk 0:02:54]}  Be7 {[%clk 0:02:53]} 13. Rhd1 {[%clk 0:02:54]}  Nf7 {[%clk 0:02:52]} 14. Nh4 {[%clk 0:02:46]}  g6 {[%clk 0:02:52]} 15. g3 {[%clk 0:02:44]}  f5 {[%clk 0:02:46]} 16. Ng2 {[%clk 0:02:44]}  Nc5 {[%clk 0:02:34]} 17. Bc2 {[%clk 0:02:40]}  a4 {[%clk 0:02:32]} 18. Ne1 {[%clk 0:01:54]}  axb3 {[%clk 0:02:27]} 19. axb3 {[%clk 0:01:55]}  Na6 {[%clk 0:02:27]} 20. Nd3 {[%clk 0:01:50]}  Rhd8 {[%clk 0:02:25]} 21. e4 {[%clk 0:01:42]}  Bg5 {[%clk 0:02:13]} 22. f4 {[%clk 0:01:42]}  fxe4 {[%clk 0:01:59]} 23. Nxe4 {[%clk 0:01:37]}  exf4 {[%clk 0:01:59]} 24. Nxg5 {[%clk 0:01:33]}  Nxg5 {[%clk 0:01:56]} 25. Nxf4 {[%clk 0:01:03]}  Rxd2 {[%clk 0:01:53]} 26. Rxd2 {[%clk 0:01:04]}  Nb4 {[%clk 0:01:35]} 27. h4 {[%clk 0:00:55]}  Nxc2 {[%clk 0:01:34]} 28. hxg5 {[%clk 0:00:50]}  Bf5 {[%clk 0:01:34]} 29. Rxc2 {[%clk 0:00:50]}  Bxc2 {[%clk 0:01:34]} 30. Kxc2 {[%clk 0:00:51]}  Re8 {[%clk 0:01:32]} 31. Kd3 {[%clk 0:00:50]}  Re1 {[%clk 0:01:28]} 32. Bc3 {[%clk 0:00:43]}  Rg1 {[%clk 0:01:26]} 33. Ne2 {[%clk 0:00:43]}  Rb1 {[%clk 0:01:22]} 34. Kc2 {[%clk 0:00:39]}  Rh1 {[%clk 0:01:21]} 35. Be5+ {[%clk 0:00:37]}  Kd7 {[%clk 0:01:21]} 36. b4 {[%clk 0:00:33]}  Ke6 {[%clk 0:01:21]} 37. Bf4 {[%clk 0:00:34]}  Kf5 {[%clk 0:01:20]} 38. c5 {[%clk 0:00:21]}  Ke4 {[%clk 0:01:19]} 39. Kc3 {[%clk 0:00:17]}  Rf1 {[%clk 0:01:10]} 40. Nd4 {[%clk 0:00:11]}  Kd5 {[%clk 0:00:58]} 41. Nc2 {[%clk 0:00:08]}  Rf3+ {[%clk 0:00:56]} 42. Ne3+ {[%clk 0:00:04]}  Ke4 {[%clk 0:00:57]} 43. Kd2 {[%clk 0:00:04]}  Rf2+ {[%clk 0:00:57]} 44. Kc3 {[%clk 0:00:05]}  Rf3 {[%clk 0:00:56]} 45. Kd2 {[%clk 0:00:06]}  Rf2+ {[%clk 0:00:56]} 46. Kc3 {[%clk 0:00:06]}  Rf3 {[%clk 0:00:55]} 1/2-1/2


[Site "https://www.chess.com"]

[Event "Titled Tuesday Blitz July 4 Late 2023"]
[White "Moksh Amit Doshi"]
[Black "KorolDimitriy75"]
[WhiteFideId "25064967"]
[WhiteElo "2571"]
[BlackElo "2435"]
[Result "1-0"]
[Round "4"]
[TimeControl "180+2"]
[Date "2023.07.04"]
[WhiteClock "0:01:02"]
[BlackClock "0:00:00"]
[Board "92"]

1. Nf3 {[%clk 0:02:53]}  c5 {[%clk 0:03:00]} 2. c4 {[%clk 0:02:50]}  g6 {[%clk 0:02:59]} 3. Nc3 {[%clk 0:02:49]}  Bg7 {[%clk 0:03:00]} 4. e3 {[%clk 0:02:49]}  Nf6 {[%clk 0:02:59]} 5. d4 {[%clk 0:02:49]}  cxd4 {[%clk 0:02:59]} 6. exd4 {[%clk 0:02:50]}  d5 {[%clk 0:02:59]} 7. cxd5 {[%clk 0:02:43]}  Nxd5 {[%clk 0:02:59]} 8. Bc4 {[%clk 0:02:44]}  Nxc3 {[%clk 0:02:43]} 9. bxc3 {[%clk 0:02:45]}  O-O {[%clk 0:02:43]} 10. O-O {[%clk 0:02:44]}  Nc6 {[%clk 0:02:34]} 11. h3 {[%clk 0:02:44]}  b6 {[%clk 0:02:32]} 12. Re1 {[%clk 0:02:43]}  Bb7 {[%clk 0:02:26]} 13. Ba3 {[%clk 0:02:43]}  Qc7 {[%clk 0:01:56]} 14. Ng5 {[%clk 0:02:30]}  h6 {[%clk 0:01:23]} 15. Nxf7 {[%clk 0:02:12]}  Rxf7 {[%clk 0:01:23]} 16. Bxf7+ {[%clk 0:02:13]}  Kxf7 {[%clk 0:01:23]} 17. Qb3+ {[%clk 0:02:14]}  Kf8 {[%clk 0:01:15]} 18. Qe6 {[%clk 0:02:15]}  Re8 {[%clk 0:00:31]} 19. Qxg6 {[%clk 0:02:14]}  Na5 {[%clk 0:00:25]} 20. Bc1 {[%clk 0:01:37]}  Qc6 {[%clk 0:00:24]} 21. Qg3 {[%clk 0:01:27]}  Nc4 {[%clk 0:00:22]} 22. Bf4 {[%clk 0:01:27]}  Qd5 {[%clk 0:00:16]} 23. Re2 {[%clk 0:01:23]}  e6 {[%clk 0:00:15]} 24. Rae1 {[%clk 0:01:23]}  Kf7 {[%clk 0:00:14]} 25. f3 {[%clk 0:01:18]}  h5 {[%clk 0:00:13]} 26. Qh4 {[%clk 0:01:17]}  Bf6 {[%clk 0:00:13]} 27. Qg3 {[%clk 0:01:13]}  Rg8 {[%clk 0:00:13]} 28. Qf2 {[%clk 0:01:14]}  Qxf3 {[%clk 0:00:13]} 29. Qxf3 {[%clk 0:01:12]}  Bxf3 {[%clk 0:00:14]} 30. Rf2 {[%clk 0:01:13]}  Bd5 {[%clk 0:00:14]} 31. Be5 {[%clk 0:01:12]}  Rg6 {[%clk 0:00:12]} 32. Ref1 {[%clk 0:01:11]}  Nxe5 {[%clk 0:00:10]} 33. dxe5 {[%clk 0:01:12]}  Ke7 {[%clk 0:00:05]} 34. exf6+ {[%clk 0:01:12]}  Kf7 {[%clk 0:00:06]} 35. Kh2 {[%clk 0:01:11]}  h4 {[%clk 0:00:06]} 36. Rd2 {[%clk 0:01:10]}  Rg3 {[%clk 0:00:05]} 37. c4 {[%clk 0:01:07]}  Bxc4 {[%clk 0:00:05]} 38. Rd7+ {[%clk 0:01:07]}  Ke8 {[%clk 0:00:02]} 39. f7+ {[%clk 0:01:05]}  Kxd7 {[%clk 0:00:02]} 40. f8=Q {[%clk 0:01:06]}  Bd5 {[%clk 0:00:03]} 41. Rf2 {[%clk 0:01:06]}  a5 {[%clk 0:00:02]} 42. Qf7+ {[%clk 0:01:03]}  Kc6 {[%clk 0:00:02]} 43. Qe7 {[%clk 0:01:03]}  Re3 {[%clk 0:00:00]} 44. Qxh4 {[%clk 0:01:02]} 1-0


[Site "https://www.chess.com"]

[Event "Titled Tuesday Blitz July 4 Late 2023"]
[White "ATM622"]
[Black "Omariev, Maksim"]
[BlackFideId "4193423"]
[WhiteElo "2559"]
[BlackElo "2429"]
[Result "1-0"]
[Round "4"]
[TimeControl "180+2"]
[Date "2023.07.04"]
[WhiteClock "0:01:13"]
[BlackClock "0:00:00"]
[Board "93"]

1. d4 {[%clk 0:03:00]}  d5 {[%clk 0:02:59]} 2. c4 {[%clk 0:02:57]}  e6 {[%clk 0:02:58]} 3. Nf3 {[%clk 0:02:57]}  Nf6 {[%clk 0:02:53]} 4. g3 {[%clk 0:02:54]}  Be7 {[%clk 0:02:50]} 5. Bg2 {[%clk 0:02:50]}  O-O {[%clk 0:02:50]} 6. O-O {[%clk 0:02:51]}  dxc4 {[%clk 0:02:45]} 7. Ne5 {[%clk 0:02:45]}  Nc6 {[%clk 0:02:39]} 8. Bxc6 {[%clk 0:02:39]}  bxc6 {[%clk 0:02:39]} 9. Nxc6 {[%clk 0:02:39]}  Qd6 {[%clk 0:02:35]} 10. Nxe7+ {[%clk 0:02:35]}  Qxe7 {[%clk 0:02:35]} 11. Qc2 {[%clk 0:02:36]}  Ba6 {[%clk 0:02:04]} 12. Na3 {[%clk 0:02:31]}  Rfd8 {[%clk 0:02:02]} 13. Rd1 {[%clk 0:02:20]}  c5 {[%clk 0:02:00]} 14. dxc5 {[%clk 0:02:10]}  Qxc5 {[%clk 0:01:23]} 15. Be3 {[%clk 0:02:06]}  Qc6 {[%clk 0:01:23]} 16. Rac1 {[%clk 0:02:02]}  Bb7 {[%clk 0:01:11]} 17. f3 {[%clk 0:02:01]}  Nd5 {[%clk 0:00:34]} 18. Bf2 {[%clk 0:01:55]}  Nb6 {[%clk 0:00:25]} 19. h4 {[%clk 0:01:45]}  h6 {[%clk 0:00:22]} 20. h5 {[%clk 0:01:43]}  Rac8 {[%clk 0:00:15]} 21. g4 {[%clk 0:01:40]}  a5 {[%clk 0:00:08]} 22. Rd4 {[%clk 0:01:38]}  Rxd4 {[%clk 0:00:07]} 23. Bxd4 {[%clk 0:01:39]}  Nd5 {[%clk 0:00:07]} 24. Nxc4 {[%clk 0:01:31]}  Nb4 {[%clk 0:00:05]} 25. Qb1 {[%clk 0:01:26]}  Qd5 {[%clk 0:00:00]} 26. Qe4 {[%clk 0:01:13]} 1-0


[Site "https://www.chess.com"]

[Event "Titled Tuesday Blitz July 4 Late 2023"]
[White "Campos, Maria Jose"]
[Black "Kochiev, Ivan"]
[WhiteFideId "146803"]
[BlackFideId "2917890"]
[WhiteElo "2391"]
[BlackElo "2545"]
[Result "0-1"]
[Round "4"]
[TimeControl "180+2"]
[Date "2023.07.04"]
[WhiteClock "0:00:49"]
[BlackClock "0:00:36"]
[Board "97"]

1. c4 {[%clk 0:03:00]}  Nf6 {[%clk 0:02:58]} 2. g3 {[%clk 0:03:00]}  e6 {[%clk 0:02:57]} 3. Bg2 {[%clk 0:03:01]}  c6 {[%clk 0:02:55]} 4. Nf3 {[%clk 0:03:01]}  d5 {[%clk 0:02:56]} 5. O-O {[%clk 0:03:00]}  b6 {[%clk 0:02:54]} 6. d4 {[%clk 0:03:00]}  Bb7 {[%clk 0:02:54]} 7. b3 {[%clk 0:03:00]}  Be7 {[%clk 0:02:55]} 8. Bb2 {[%clk 0:03:00]}  O-O {[%clk 0:02:55]} 9. Qc2 {[%clk 0:03:01]}  dxc4 {[%clk 0:02:54]} 10. bxc4 {[%clk 0:03:01]}  c5 {[%clk 0:02:54]} 11. e3 {[%clk 0:02:56]}  Nc6 {[%clk 0:02:49]} 12. Rd1 {[%clk 0:02:55]}  Qc8 {[%clk 0:02:40]} 13. Nc3 {[%clk 0:02:54]}  Rd8 {[%clk 0:02:35]} 14. Rac1 {[%clk 0:02:52]}  a6 {[%clk 0:02:32]} 15. Qe2 {[%clk 0:02:52]}  cxd4 {[%clk 0:02:23]} 16. exd4 {[%clk 0:02:52]}  Na5 {[%clk 0:02:24]} 17. Na4 {[%clk 0:02:49]}  Qc6 {[%clk 0:02:18]} 18. Qc2 {[%clk 0:02:27]}  Rac8 {[%clk 0:02:12]} 19. Nh4 {[%clk 0:02:25]}  Qc7 {[%clk 0:02:11]} 20. Bxb7 {[%clk 0:02:21]}  Qxb7 {[%clk 0:02:12]} 21. d5 {[%clk 0:01:59]}  Rxc4 {[%clk 0:02:09]} 22. Qe2 {[%clk 0:01:52]}  Rxa4 {[%clk 0:01:34]} 23. dxe6 {[%clk 0:01:51]}  Rxd1+ {[%clk 0:01:34]} 24. Rxd1 {[%clk 0:01:52]}  Re4 {[%clk 0:01:25]} 25. exf7+ {[%clk 0:01:52]}  Kxf7 {[%clk 0:01:25]} 26. Qc2 {[%clk 0:01:51]}  Qc6 {[%clk 0:01:18]} 27. Qd3 {[%clk 0:01:50]}  Qc4 {[%clk 0:01:15]} 28. Qf3 {[%clk 0:01:41]}  Qe2 {[%clk 0:01:09]} 29. Rb1 {[%clk 0:01:14]}  Qxf3 {[%clk 0:01:07]} 30. Nxf3 {[%clk 0:01:15]}  Rb4 {[%clk 0:01:08]} 31. a3 {[%clk 0:01:14]}  Rb5 {[%clk 0:01:04]} 32. Nd4 {[%clk 0:01:14]}  Rd5 {[%clk 0:01:00]} 33. Nf3 {[%clk 0:01:12]}  Nc4 {[%clk 0:00:54]} 34. Bc3 {[%clk 0:01:11]}  Rd3 {[%clk 0:00:53]} 35. Ng5+ {[%clk 0:01:10]}  Kg6 {[%clk 0:00:51]} 36. Bxf6 {[%clk 0:01:09]}  Bxf6 {[%clk 0:00:47]} 37. Ne6 {[%clk 0:01:09]}  Rxa3 {[%clk 0:00:46]} 38. Rb4 {[%clk 0:01:07]}  b5 {[%clk 0:00:43]} 39. Nc7 {[%clk 0:01:05]}  Ra1+ {[%clk 0:00:39]} 40. Kg2 {[%clk 0:01:04]}  Bc3 {[%clk 0:00:40]} 41. Rb3 {[%clk 0:01:04]}  b4 {[%clk 0:00:37]} 42. Nd5 {[%clk 0:00:49]}  Nd2 {[%clk 0:00:36]} 0-1


[Site "https://www.chess.com"]

[Event "Titled Tuesday Blitz July 4 Late 2023"]
[White "Haitin, Ilja"]
[Black "Golubev, Mikhail"]
[WhiteFideId "4501764"]
[BlackFideId "14100983"]
[WhiteElo "2341"]
[BlackElo "2540"]
[Result "0-1"]
[Round "4"]
[TimeControl "180+2"]
[Date "2023.07.04"]
[WhiteClock "0:00:00"]
[BlackClock "0:00:11"]
[Board "98"]

1. Nf3 {[%clk 0:03:00]}  d6 {[%clk 0:02:59]} 2. d4 {[%clk 0:03:00]}  Nf6 {[%clk 0:02:59]} 3. b3 {[%clk 0:02:59]}  g6 {[%clk 0:02:58]} 4. Bb2 {[%clk 0:03:00]}  Bg7 {[%clk 0:02:58]} 5. e3 {[%clk 0:03:00]}  O-O {[%clk 0:02:58]} 6. Be2 {[%clk 0:03:01]}  a5 {[%clk 0:02:55]} 7. c4 {[%clk 0:02:52]}  a4 {[%clk 0:02:54]} 8. b4 {[%clk 0:02:53]}  c5 {[%clk 0:02:41]} 9. b5 {[%clk 0:02:27]}  cxd4 {[%clk 0:02:40]} 10. exd4 {[%clk 0:02:21]}  a3 {[%clk 0:02:35]} 11. Bc3 {[%clk 0:02:16]}  Ne4 {[%clk 0:02:13]} 12. Bb4 {[%clk 0:02:13]}  e5 {[%clk 0:02:10]} 13. Nc3 {[%clk 0:01:52]}  Nxc3 {[%clk 0:01:46]} 14. Bxc3 {[%clk 0:01:51]}  e4 {[%clk 0:01:46]} 15. Nd2 {[%clk 0:01:48]}  Qg5 {[%clk 0:01:33]} 16. O-O {[%clk 0:01:43]}  Bh3 {[%clk 0:01:30]} 17. g3 {[%clk 0:01:36]}  Bxf1 {[%clk 0:01:30]} 18. Nxf1 {[%clk 0:01:18]}  Nd7 {[%clk 0:01:29]} 19. Ne3 {[%clk 0:01:10]}  f5 {[%clk 0:01:18]} 20. Nd5 {[%clk 0:00:55]}  f4 {[%clk 0:01:14]} 21. h4 {[%clk 0:00:54]}  Qd8 {[%clk 0:01:05]} 22. Nxf4 {[%clk 0:00:49]}  Rxf4 {[%clk 0:01:05]} 23. gxf4 {[%clk 0:00:50]}  Qxh4 {[%clk 0:01:05]} 24. Qf1 {[%clk 0:00:20]}  Rf8 {[%clk 0:00:55]} 25. Qg2 {[%clk 0:00:19]}  Rxf4 {[%clk 0:00:55]} 26. Bd2 {[%clk 0:00:18]}  Bxd4 {[%clk 0:00:39]} 27. Bxf4 {[%clk 0:00:18]}  Qxf4 {[%clk 0:00:38]} 28. Rd1 {[%clk 0:00:17]}  Bc5 {[%clk 0:00:37]} 29. Rd5 {[%clk 0:00:14]}  Ne5 {[%clk 0:00:34]} 30. Rxe5 {[%clk 0:00:12]}  Qxe5 {[%clk 0:00:30]} 31. Qg4 {[%clk 0:00:11]}  b6 {[%clk 0:00:28]} 32. Kg2 {[%clk 0:00:11]}  Qe7 {[%clk 0:00:19]} 33. Qf4 {[%clk 0:00:10]}  Kg7 {[%clk 0:00:18]} 34. Bg4 {[%clk 0:00:11]}  e3 {[%clk 0:00:18]} 35. fxe3 {[%clk 0:00:10]}  Bxe3 {[%clk 0:00:18]} 36. Qf3 {[%clk 0:00:11]}  Bc5 {[%clk 0:00:17]} 37. Qc3+ {[%clk 0:00:10]}  Qf6 {[%clk 0:00:16]} 38. Qe1 {[%clk 0:00:09]}  h5 {[%clk 0:00:16]} 39. Bc8 {[%clk 0:00:08]}  Qg5+ {[%clk 0:00:15]} 40. Kh3 {[%clk 0:00:08]}  Qe3+ {[%clk 0:00:15]} 41. Qxe3 {[%clk 0:00:08]}  Bxe3 {[%clk 0:00:16]} 42. Kh4 {[%clk 0:00:07]}  Kh6 {[%clk 0:00:15]} 43. Bb7 {[%clk 0:00:05]}  Bf2+ {[%clk 0:00:15]} 44. Kh3 {[%clk 0:00:05]}  g5 {[%clk 0:00:15]} 45. Bd5 {[%clk 0:00:04]}  Bc5 {[%clk 0:00:16]} 46. Kg2 {[%clk 0:00:05]}  g4 {[%clk 0:00:15]} 47. Kg3 {[%clk 0:00:06]}  Kg5 {[%clk 0:00:15]} 48. Be6 {[%clk 0:00:02]}  h4+ {[%clk 0:00:15]} 49. Kg2 {[%clk 0:00:03]}  Bd4 {[%clk 0:00:15]} 50. Kh2 {[%clk 0:00:01]}  Be5+ {[%clk 0:00:13]} 51. Kg2 {[%clk 0:00:02]}  h3+ {[%clk 0:00:13]} 52. Kg1 {[%clk 0:00:02]}  Kh4 {[%clk 0:00:13]} 53. Bd5 {[%clk 0:00:03]}  Bd4+ {[%clk 0:00:12]} 54. Kh1 {[%clk 0:00:02]}  g3 {[%clk 0:00:13]} 55. c5 {[%clk 0:00:03]}  Bxc5 {[%clk 0:00:11]} 56. Bc6 {[%clk 0:00:02]}  g2+ {[%clk 0:00:11]} 57. Bxg2 {[%clk 0:00:02]}  hxg2+ {[%clk 0:00:10]} 58. Kxg2 {[%clk 0:00:00]}  Kg4 {[%clk 0:00:11]} 0-1


[Site "https://www.chess.com"]

[Event "Titled Tuesday Blitz July 4 Late 2023"]
[White "Poltorak, Sebastian"]
[Black "Ardila, Oscar Humberto"]
[WhiteFideId "1199498"]
[BlackFideId "4404742"]
[WhiteElo "2539"]
[BlackElo "2316"]
[Result "0-1"]
[Round "4"]
[TimeControl "180+2"]
[Date "2023.07.04"]
[WhiteClock "0:00:00"]
[BlackClock "0:01:00"]
[Board "99"]

1. e4 {[%clk 0:03:00]}  e5 {[%clk 0:02:56]} 2. f4 {[%clk 0:02:59]}  d5 {[%clk 0:02:56]} 3. exd5 {[%clk 0:02:56]}  e4 {[%clk 0:02:56]} 4. Nc3 {[%clk 0:02:55]}  Nf6 {[%clk 0:02:54]} 5. d3 {[%clk 0:02:55]}  Bb4 {[%clk 0:02:50]} 6. dxe4 {[%clk 0:02:47]}  Bxc3+ {[%clk 0:02:50]} 7. bxc3 {[%clk 0:02:47]}  Nxe4 {[%clk 0:02:50]} 8. Nf3 {[%clk 0:02:45]}  O-O {[%clk 0:02:50]} 9. Qd4 {[%clk 0:02:36]}  Re8 {[%clk 0:02:47]} 10. Be2 {[%clk 0:02:32]}  c5 {[%clk 0:02:41]} 11. dxc6 {[%clk 0:02:28]}  Nxc6 {[%clk 0:02:40]} 12. Qxd8 {[%clk 0:02:28]}  Rxd8 {[%clk 0:02:40]} 13. Bb2 {[%clk 0:02:23]}  Be6 {[%clk 0:02:25]} 14. O-O {[%clk 0:02:17]}  Nd2 {[%clk 0:02:24]} 15. Rfd1 {[%clk 0:02:14]}  Nc4 {[%clk 0:02:18]} 16. Bxc4 {[%clk 0:02:08]}  Bxc4 {[%clk 0:02:17]} 17. Nd4 {[%clk 0:01:58]}  Re8 {[%clk 0:02:08]} 18. Rd2 {[%clk 0:01:54]}  Re4 {[%clk 0:02:06]} 19. g3 {[%clk 0:01:47]}  Rae8 {[%clk 0:02:04]} 20. a4 {[%clk 0:01:43]}  h5 {[%clk 0:02:00]} 21. Rad1 {[%clk 0:01:35]}  Re1+ {[%clk 0:01:53]} 22. Rxe1 {[%clk 0:01:32]}  Rxe1+ {[%clk 0:01:54]} 23. Kf2 {[%clk 0:01:32]}  Rf1+ {[%clk 0:01:54]} 24. Kg2 {[%clk 0:01:32]}  Rb1 {[%clk 0:01:51]} 25. Ba3 {[%clk 0:01:27]}  Ra1 {[%clk 0:01:30]} 26. Bd6 {[%clk 0:01:06]}  Rxa4 {[%clk 0:01:23]} 27. Nf3 {[%clk 0:00:54]}  Ra1 {[%clk 0:01:18]} 28. Be5 {[%clk 0:00:49]}  f6 {[%clk 0:01:14]} 29. Bc7 {[%clk 0:00:45]}  a5 {[%clk 0:01:09]} 30. Nd4 {[%clk 0:00:20]}  a4 {[%clk 0:01:08]} 31. Nxc6 {[%clk 0:00:15]}  bxc6 {[%clk 0:01:07]} 32. Rd4 {[%clk 0:00:15]}  Bd5+ {[%clk 0:01:05]} 33. Kf2 {[%clk 0:00:08]}  a3 {[%clk 0:01:05]} 34. Ra4 {[%clk 0:00:02]}  a2 {[%clk 0:01:03]} 35. c4 {[%clk 0:00:02]}  Be4 {[%clk 0:01:00]} 36. Ke3 {[%clk 0:00:00]}  Bxc2 {[%clk 0:01:00]} 0-1


[Site "https://www.chess.com"]